bitfinex/quotes_SOLUSD_20260114
["timestamp","ask_amount","ask_price","bid_price","bid_amount"]
[1768396018495,0.70773077,144.19,144.15,3.24132317]
[1768396018815,5.17052492,144.18,144.15,3.24132317]
[1768396018987,0.70773077,144.19,144.15,3.24132317]
[1768396019193,5.36105215,144.18,144.14,2.58587694]
[1768396019393,0.70773077,144.18,144.14,3.24132317]
[1768396020518,7.64367041,144.18,144.14,3.24132317]
[1768396021021,5.16989594,144.17,144.14,3.24132317]
[1768396021691,7.64367041,144.18,144.14,3.24132317]
[1768396022094,10.22954735,144.18,144.14,3.24132317]
[1768396022296,0.70773077,144.18,144.14,7.59307651]
[1768396022502,0.70773077,144.18,144.15,2.58587694]
[1768396023914,0.70773077,144.18,144.16,2.58587694]
[1768396024114,0.70773077,144.19,144.16,2.58587694]
[1768396024516,0.70773077,144.19,144.16,9.52260897]
[1768396024820,0.70773077,144.19,144.17,2.58587694]
[1768396025622,0.70773077,144.2,144.18,2.58587694]
[1768396026225,0.70773077,144.2,144.17,2.58587694]
[1768396027407,13.36773077,144.22,144.18,3.24132317]
[1768396027609,9.82346467,144.21,144.18,3.24132317]
[1768396027809,0.70773077,144.23,144.2,2.58587694]
[1768396028010,4.65383262,144.22,144.21,2.58587694]
[1768396028324,0.70773077,144.24,144.16,17.34184239]
[1768396028526,5.36179343,144.23,144.21,2.58587694]
[1768396028727,0.70773077,144.23,144.21,2.58587694]
[1768396029324,13.36773077,144.25,144.22,2.58587694]
[1768396029505,13.36773077,144.25,144.22,2.5595388]
[1768396030515,0.70773077,144.25,144.24,2.58587694]
[1768396030721,0.70773077,144.27,144.24,2.58587694]
[1768396031222,0.70773077,144.27,144.2,2.58587694]
[1768396031223,0.70773077,144.28,144.26,2.58587694]
[1768396032405,0.70773077,144.28,144.22,24.26844101]
[1768396032609,0.70773077,144.28,144.25,2.58587694]
[1768396034436,0.70773077,144.28,144.25,9.51817018]
[1768396034630,0.70773077,144.28,144.26,2.58587694]
[1768396035015,0.70773077,144.29,144.27,2.58587694]
[1768396035229,9.71378071,144.35,144.28,2.58587694]
[1768396035435,17.3010892,144.34,144.29,2.58587694]
[1768396035630,0.2,144.35,144.32,2.58587694]
[1768396036438,0.2,144.37,144.34,2.58587694]
[1768396036637,0.2,144.37,144.36,2.58587694]
[1768396036946,0.2,144.37,144.36,2.52587694]
[1768396037117,0.2,144.37,144.35,2.58587694]
[1768396037311,0.2,144.37,144.36,2.58587694]
[1768396039823,0.85528634,144.37,144.36,2.58587694]
[1768396040023,0.2,144.37,144.36,2.58587694]
[1768396040219,0.2,144.37,144.35,2.58587694]
[1768396041640,0.2,144.37,144.36,2.58587694]
[1768396042544,0.2,144.37,144.35,2.58587694]
[1768396044038,0.2,144.37,144.34,7.635643]
[1768396044342,0.2,144.37,144.36,2.58587694]
[1768396045042,0.65528634,144.38,144.36,2.58587694]
[1768396045944,0.88248712,144.39,144.37,2.58587694]
[1768396046150,0.88248712,144.39,144.37,2.55955076]
[1768396048248,0.88248712,144.39,144.37,9.48598633]
[1768396048444,0.88248712,144.39,144.37,6.92643557]
[1768396048651,0.88248712,144.39,144.37,9.51231251]
[1768396048952,0.88248712,144.39,144.37,2.58587694]
[1768396049938,0.88248712,144.39,144.37,9.51251303]
[1768396050738,0.2,144.39,144.37,9.51251303]
[1768396051137,0.2,144.39,144.37,2.58587694]
[1768396051346,0.88248712,144.39,144.37,2.58587694]
[1768396052223,0.88248712,144.39,144.36,10.22057739]
[1768396053253,0.88248712,144.39,144.37,2.58587694]
[1768396053950,0.2,144.39,144.37,9.51237342]
[1768396054642,1e-08,144.39,144.38,2.58587694]
[1768396054842,0.2,144.4,144.38,2.58587694]
[1768396055048,0.2,144.4,144.39,2.58587694]
[1768396055242,0.2,144.4,144.39,2.55955423]
[1768396055656,0.2,144.4,144.39,2.49955423]
[1768396055839,0.2,144.4,144.38,6.92590162]
[1768396056159,0.2,144.4,144.39,2.58587694]
[1768396057439,0.2,144.4,144.38,6.92590162]
[1768396057754,0.2,144.4,144.38,10.95312708]
[1768396057938,0.2,144.4,144.38,4.02722546]
[1768396058334,0.2,144.4,144.38,10.95335825]
[1768396060235,0.2,144.4,144.37,4.73495623]
[1768396060436,0.2,144.4,144.37,11.66158271]
[1768396061337,0.88248712,144.4,144.37,11.66158271]
[1768396062338,0.88248712,144.4,144.37,7.63435725]
[1768396062550,0.88248712,144.4,144.37,11.66158271]
[1768396063243,0.68248712,144.38,144.33,22.05620829]
[1768396063461,0.68248712,144.37,144.33,22.05620829]
[1768396063756,0.68248712,144.37,144.33,18.02898283]
[1768396063965,0.68248712,144.37,144.34,4.02722546]
[1768396065361,0.68248712,144.36,144.32,6.92887098]
[1768396065539,0.68248712,144.36,144.32,10.95609644]
[1768396067368,0.68248712,144.36,144.32,6.92887098]
[1768396067668,0.68248712,144.36,144.32,10.95609644]
[1768396068663,0.68248712,144.36,144.32,6.92887098]
[1768396068869,0.68248712,144.36,144.32,10.95609644]
[1768396070652,0.68248712,144.36,144.33,4.02722546]
[1768396071741,0.68248712,144.36,144.33,10.9556799]
[1768396072369,0.68248712,144.36,144.33,11.65002578]
[1768396072543,0.68248712,144.36,144.34,4.02722546]
[1768396072966,11.15282033,144.4,144.35,4.02722546]
[1768396072967,0.68239324,144.39,144.35,4.02722546]
[1768396073162,0.68239324,144.38,144.35,4.02722546]
[1768396073970,0.68239324,144.38,144.35,4.72157134]
[1768396075151,0.68239324,144.38,144.35,10.95481927]
[1768396075460,0.68239324,144.38,144.34,7.62221254]
[1768396075666,0.68239324,144.38,144.34,4.72157134]
[1768396075874,0.68239324,144.38,144.34,11.64964755]
[1768396077378,5.33069033,144.37,144.34,11.64964755]
[1768396077564,0.68239324,144.37,144.34,6.92807621]
[1768396078065,0.68239324,144.37,144.34,10.95530167]
[1768396080378,4.66030134,144.36,144.34,10.95530167]
[1768396080579,0.68239324,144.37,144.34,10.95530167]
[1768396080877,4.66030134,144.36,144.34,10.95530167]
[1768396081060,0.68239324,144.37,144.34,10.95530167]
[1768396081264,4.6611006,144.36,144.34,10.95530167]
[1768396081478,0.68239324,144.37,144.34,10.95530167]
[1768396081780,4.6611718,144.36,144.34,10.95530167]
[1768396081978,13.32239324,144.39,144.35,4.72157134]
[1768396082274,13.32239324,144.39,144.34,6.92807621]
[1768396082275,0.2,144.4,144.38,4.02722546]
[1768396082660,0.2,144.4,144.38,4.00090448]
[1768396083962,0.68239324,144.42,144.39,4.02722546]
[1768396084268,0.68239324,144.42,144.38,4.02722546]
[1768396084577,0.68239324,144.4,144.35,4.02722546]
[1768396084881,0.68239324,144.37,144.33,10.95553489]
[1768396085073,0.68239324,144.37,144.33,4.02722546]
[1768396085266,0.68239324,144.36,144.32,4.02722546]
[1768396085466,0.68239324,144.35,144.31,11.65104326]
[1768396085761,0.68239324,144.35,144.32,10.95624077]
[1768396087470,0.68239324,144.35,144.33,4.02722546]
[1768396087764,4.02722546,144.38,144.33,4.02722546]
[1768396087984,10.95346322,144.38,144.33,4.02722546]
[1768396088169,4.02722546,144.37,144.31,11.65098389]
[1768396088482,4.02722546,144.35,144.31,6.9293656]
[1768396089786,0.68239324,144.34,144.31,6.9293656]
[1768396090368,0.68239324,144.34,144.3,11.65145134]
[1768396090682,0.68239324,144.33,144.3,7.62422588]
[1768396091491,0.68239324,144.33,144.3,11.65145134]
[1768396091990,0.68239324,144.33,144.3,7.62422588]
[1768396092191,0.68239324,144.33,144.3,11.65145134]
[1768396093187,0.68239324,144.33,144.3,6.92988]
[1768396093388,4.7096187,144.32,144.28,7.625153]
[1768396093591,0.68239324,144.31,144.28,6.93080712]
[1768396093795,4.02722546,144.34,144.28,4.72157134]
[1768396094086,4.02722546,144.34,144.29,11.65173197]
[1768396094272,4.02722546,144.34,144.29,7.62450651]
[1768396095690,0.68239324,144.33,144.29,7.62450651]
[1768396096191,0.68239324,144.32,144.29,7.62450651]
[1768396097900,0.68239324,144.33,144.29,11.65173197]
[1768396100908,0.7030814,144.32,144.28,10.95799225]
[1768396101209,19.56776062,144.35,144.29,7.58801088]
[1768396101374,8.6727858,144.34,144.29,11.61523634]
[1768396101576,4.02722546,144.34,144.29,11.61523634]
[1768396102913,4.02722546,144.3,144.24,0.65762338]
[1768396103086,16.66722546,144.3,144.25,0.65762338]
[1768396103288,12.64,144.3,144.26,0.65762338]
[1768396103594,4.02722546,144.32,144.27,0.65762338]
[1768396104898,4.02722546,144.32,144.28,0.65762338]
[1768396105098,12.64,144.33,144.28,0.65762338]
[1768396105298,4.02722546,144.32,144.28,0.65762338]
[1768396105898,12.64,144.35,144.28,0.65762338]
[1768396106081,12.64,144.35,144.29,0.65762338]
[1768396106282,16.66722546,144.35,144.31,0.65762338]
[1768396107192,12.64,144.35,144.31,0.65762338]
[1768396107611,19.56761797,144.35,144.31,0.65762338]
[1768396107810,23.59484343,144.35,144.31,0.65762338]
[1768396108709,4.02722546,144.34,144.3,0.65762338]
[1768396110108,4.02722546,144.33,144.29,0.65762338]
[1768396112515,10.95588746,144.33,144.29,0.65762338]
[1768396113420,4.02722546,144.33,144.29,0.65762338]
[1768396113622,10.95548689,144.34,144.29,7.5879755]
[1768396114422,10.95548689,144.34,144.3,0.65762338]
[1768396115920,6.92826143,144.34,144.3,0.65762338]
[1768396117113,10.95548689,144.34,144.3,0.65762338]
[1768396117802,4.02722546,144.33,144.29,0.65762338]
[1768396118002,10.95605566,144.33,144.29,0.65762338]
[1768396118421,10.95605566,144.33,144.27,6.93133159]
[1768396118631,10.95605566,144.33,144.28,0.65762338]
[1768396119302,9.5102625,144.33,144.28,7.58855924]
[1768396121120,2.5814323,144.32,144.28,7.58855924]
[1768396121324,2.5814323,144.32,144.28,0.65762338]
[1768396121505,2.5814323,144.32,144.27,0.65762338]
[1768396121824,24.24830261,144.34,144.27,7.58893685]
[1768396122022,2.5814323,144.32,144.27,7.58893685]
[1768396123727,9.51059179,144.32,144.27,7.58893685]
[1768396123924,12.64,144.35,144.3,0.65762338]
[1768396124108,102.175,144.36,144.31,0.65762338]
[1768396124429,4.64532462,144.35,144.31,0.65762338]
[1768396124624,109.10234328,144.36,144.31,0.65762338]
[1768396124930,4.64532462,144.35,144.31,0.65762338]
[1768396125118,111.68377558,144.36,144.31,0.65762338]
[1768396125318,4.64532626,144.35,144.31,0.65762338]
[1768396125624,111.68377558,144.36,144.31,0.65762338]
[1768396125828,4.64560574,144.35,144.31,0.65762338]
[1768396126030,111.68377558,144.36,144.31,0.65762338]
[1768396126215,4.64560411,144.35,144.31,0.65762338]
[1768396126417,111.68377558,144.36,144.31,0.65762338]
[1768396126723,4.64627415,144.35,144.31,0.65762338]
[1768396126919,111.68377558,144.36,144.31,0.65762338]
[1768396127125,4.64628125,144.35,144.31,0.65762338]
[1768396127328,4.64741482,144.34,144.31,0.65762338]
[1768396127527,111.68377558,144.36,144.31,0.65762338]
[1768396127720,4.64741336,144.35,144.31,0.65762338]
[1768396127919,102.175,144.36,144.32,0.65762338]
[1768396128307,4.64981157,144.35,144.32,0.65762338]
[1768396128513,102.175,144.36,144.32,0.65762338]
[1768396128714,4.64981157,144.35,144.33,0.65762338]
[1768396129036,15.2214323,144.38,144.33,0.65762338]
[1768396129229,9.81983007,144.37,144.33,0.65762338]
[1768396129420,4.64994081,144.36,144.33,0.65762338]
[1768396129620,4.64994081,144.35,144.33,0.65762338]
[1768396129829,2.5814323,144.37,144.33,0.65762338]
[1768396130024,4.65264614,144.36,144.33,0.65762338]
[1768396130230,4.65264614,144.35,144.33,0.65762338]
[1768396130421,2.5814323,144.37,144.33,0.65762338]
[1768396130616,4.65372372,144.36,144.33,0.65762338]
[1768396130819,4.65372372,144.35,144.33,0.65762338]
[1768396131025,6.92669103,144.37,144.33,0.65762338]
[1768396131220,4.65373481,144.36,144.33,0.65762338]
[1768396131440,4.65373481,144.35,144.33,0.65762338]
[1768396131642,9.50812333,144.37,144.33,0.65762338]
[1768396131865,4.65423404,144.36,144.33,0.65762338]
[1768396132139,4.65423404,144.35,144.33,0.65762338]
[1768396132333,9.50812333,144.37,144.33,0.65762338]
[1768396132632,4.654808,144.36,144.33,0.65762338]
[1768396132833,4.654808,144.35,144.33,0.65762338]
[1768396133035,2.5814323,144.36,144.31,7.60109843]
[1768396133338,7.23606057,144.35,144.31,0.67172394]
[1768396133524,4.65462827,144.34,144.31,0.67172394]
[1768396133841,4.65462827,144.34,144.3,7.60157038]
[1768396138253,4.65462827,144.34,144.31,0.67172394]
[1768396139377,6.92734727,144.36,144.31,0.67172394]
[1768396139545,4.6558145,144.35,144.31,0.67172394]
[1768396139745,4.6558145,144.34,144.31,0.67172394]
[1768396139953,6.92734727,144.36,144.31,0.67172394]
[1768396140149,4.65582233,144.35,144.32,0.67172394]
[1768396140356,4.65571968,144.34,144.32,0.67172394]
[1768396140546,6.92734727,144.36,144.32,0.67172394]
[1768396140748,4.65572919,144.35,144.33,0.67172394]
[1768396140947,21.0410819,144.38,144.33,0.67172394]
[1768396141247,9.82912077,144.37,144.33,0.67172394]
[1768396141449,4.65590212,144.36,144.33,0.67172394]
[1768396141651,4.65590212,144.35,144.33,0.67172394]
[1768396141858,22.14806842,144.38,144.33,7.6000499]
[1768396142038,9.82883915,144.37,144.33,7.6000499]
[1768396142237,4.65576857,144.36,144.33,7.6000499]
[1768396142437,4.65576857,144.35,144.33,7.6000499]
[1768396142657,22.14806842,144.38,144.33,7.6000499]
[1768396142963,9.82788224,144.37,144.33,7.6000499]
[1768396143157,4.6553193,144.36,144.33,7.6000499]
[1768396143464,4.6553193,144.35,144.33,7.6000499]
[1768396143658,22.14806842,144.38,144.33,7.6000499]
[1768396143961,9.82733649,144.37,144.33,7.6000499]
[1768396144164,109.10034795,144.4,144.35,0.67172394]
[1768396144468,5.17267346,144.39,144.35,0.67172394]
[1768396144767,102.175,144.4,144.35,0.67172394]
[1768396145464,111.68164891,144.4,144.36,0.67172394]
[1768396145764,7.75167258,144.39,144.34,7.59961708]
[1768396145969,2.5814323,144.39,144.34,7.59961708]
[1768396146263,2.5814323,144.38,144.33,7.60019164]
[1768396146461,2.5814323,144.38,144.32,7.6007506]
[1768396146664,2.5814323,144.37,144.32,7.6007506]
[1768396147365,6.92616705,144.38,144.33,6.92850305]
[1768396147674,9.50759935,144.38,144.33,7.60022699]
[1768396150056,2.5814323,144.38,144.33,7.60022699]
[1768396150672,19.56590406,144.39,144.34,0.67172394]
[1768396150880,5.16944935,144.38,144.34,0.67172394]
[1768396151054,22.14733636,144.39,144.34,0.67172394]
[1768396151372,5.16946841,144.38,144.34,0.67172394]
[1768396151575,22.14733636,144.39,144.34,0.67172394]
[1768396151755,5.16915697,144.38,144.34,7.59963468]
[1768396151953,22.14733636,144.39,144.34,7.59963468]
[1768396152169,5.16917525,144.38,144.34,7.59963468]
[1768396152460,22.14733636,144.39,144.34,0.67172394]
[1768396152767,5.16890336,144.38,144.34,0.67172394]
[1768396152968,22.14733636,144.39,144.34,0.67172394]
[1768396153168,5.16890154,144.38,144.34,0.67172394]
[1768396153370,22.14733636,144.39,144.34,0.67172394]
[1768396153572,5.16865498,144.38,144.34,0.67172394]
[1768396153877,22.14733636,144.39,144.34,0.67172394]
[1768396154073,5.16865681,144.38,144.34,0.67172394]
[1768396154286,22.14733636,144.39,144.34,0.67172394]
[1768396154461,5.16849505,144.38,144.34,0.67172394]
[1768396154774,22.14733636,144.39,144.34,0.67172394]
[1768396154973,2.5814323,144.35,144.31,0.67172394]
[1768396155174,5.16845153,144.38,144.31,0.67172394]
[1768396155175,2.5814323,144.34,144.31,0.67172394]
[1768396156179,9.50909668,144.35,144.31,0.67172394]
[1768396156369,4.65127497,144.34,144.31,0.67172394]
[1768396156571,9.50909668,144.35,144.31,0.67172394]
[1768396156890,4.65113532,144.34,144.31,0.67172394]
[1768396157078,9.50909668,144.35,144.31,0.67172394]
[1768396157277,4.65113075,144.34,144.31,0.67172394]
[1768396157475,9.50909668,144.35,144.31,0.67172394]
[1768396157662,4.65131641,144.34,144.31,0.67172394]
[1768396157976,9.50909668,144.35,144.31,0.67172394]
[1768396158156,4.65134453,144.34,144.31,7.60121081]
[1768396158362,6.92766438,144.35,144.31,7.60121081]
[1768396158562,4.65155709,144.34,144.31,7.60121081]
[1768396158761,6.92766438,144.35,144.31,7.60121081]
[1768396159069,4.6515539,144.34,144.31,7.60121081]
[1768396159258,6.92766438,144.35,144.31,7.60121081]
[1768396159462,4.65169617,144.34,144.31,7.60121081]
[1768396159661,6.92766438,144.35,144.31,7.60121081]
[1768396159897,3.92669617,144.34,144.31,9.51091917]
[1768396160077,2.73136406,144.37,144.31,9.51091917]
[1768396160279,0.14993176,144.37,144.31,26.83473595]
[1768396160599,2.73136406,144.38,144.33,0.67613775]
[1768396161394,0.14993176,144.38,144.34,7.63065634]
[1768396161566,0.71196614,144.38,144.35,0.70272335]
[1768396161767,2.5814323,144.38,144.35,0.70272335]
[1768396162559,6.92596415,144.39,144.35,0.70272335]
[1768396162770,2.5814323,144.39,144.35,0.70272335]
[1768396163770,9.50722143,144.39,144.35,0.70272335]
[1768396163971,7.03163141,144.39,144.35,0.70272335]
[1768396164169,9.61306371,144.39,144.35,0.70272335]
[1768396164369,9.50722143,144.39,144.35,0.70272335]
[1768396166092,6.92578913,144.39,144.35,0.70272335]
[1768396169408,22.25267822,144.4,144.35,7.63025828]
[1768396169590,5.17400757,144.39,144.36,0.70272335]
[1768396169772,12.74584228,144.4,144.36,0.70272335]
[1768396169973,10.22437348,144.41,144.36,0.70272335]
[1768396170174,5.17361073,144.4,144.36,0.70272335]
[1768396170493,10.22437348,144.41,144.36,0.70272335]
[1768396170677,5.1730091,144.4,144.37,0.70272335]
[1768396170875,7.64294118,144.41,144.37,1e-08]
[1768396171074,5.17302566,144.4,144.37,1e-08]
[1768396171274,10.22437348,144.41,144.37,1e-08]
[1768396171474,5.89059802,144.4,144.37,1e-08]
[1768396171688,0.7180886,144.4,144.37,1e-08]
[1768396171995,4.65566335,144.39,144.37,1e-08]
[1768396172196,0.7180886,144.4,144.37,1e-08]
[1768396172397,4.65370758,144.39,144.37,1e-08]
[1768396172597,0.7180886,144.4,144.37,1e-08]
[1768396172802,4.6536362,144.39,144.37,1e-08]
[1768396173095,10.22437348,144.41,144.37,1e-08]
[1768396173283,9.82380149,144.4,144.37,1e-08]
[1768396173483,4.65358543,144.39,144.37,1e-08]
[1768396173684,10.22437348,144.41,144.37,1e-08]
[1768396173878,9.82189878,144.4,144.37,1e-08]
[1768396174086,4.65267775,144.39,144.37,1e-08]
[1768396174286,10.22437348,144.41,144.37,1e-08]
[1768396174594,9.82081805,144.4,144.37,1e-08]
[1768396174797,4.65215551,144.39,144.37,1e-08]
[1768396174971,10.22437348,144.41,144.37,1e-08]
[1768396175175,9.82044487,144.4,144.37,1e-08]
[1768396175396,4.65215503,144.39,144.37,1e-08]
[1768396175594,10.22437348,144.41,144.37,1e-08]
[1768396175800,4.65171849,144.4,144.37,1e-08]
[1768396176097,4.65171849,144.39,144.37,1e-08]
[1768396176299,0.7180886,144.4,144.37,1e-08]
[1768396176600,4.65134398,144.39,144.37,1e-08]
[1768396176910,10.22437348,144.41,144.37,1e-08]
[1768396177074,4.65136279,144.4,144.37,1e-08]
[1768396177276,4.65136279,144.39,144.37,1e-08]
[1768396177500,10.22437348,144.41,144.37,1e-08]
[1768396177710,5.36910584,144.4,144.37,1e-08]
[1768396177881,4.65101724,144.39,144.37,1e-08]
[1768396178083,10.22437348,144.41,144.37,1e-08]
[1768396178281,4.65103362,144.4,144.37,1e-08]
[1768396178486,4.65103362,144.39,144.37,1e-08]
[1768396178710,10.22437348,144.41,144.37,1e-08]
[1768396178880,4.65303013,144.4,144.37,1e-08]
[1768396179073,4.65303013,144.39,144.37,1e-08]
[1768396179278,10.22437348,144.41,144.37,1e-08]
[1768396179499,4.65337291,144.4,144.37,1e-08]
[1768396179788,4.65337291,144.39,144.37,1e-08]
[1768396180198,10.22437348,144.41,144.37,1e-08]
[1768396180404,7.23496062,144.4,144.37,1e-08]
[1768396180579,4.65352832,144.39,144.37,1e-08]
[1768396180779,2.5814323,144.4,144.37,1e-08]
[1768396180980,4.65352103,144.39,144.37,1e-08]
[1768396181199,9.50664158,144.4,144.37,1e-08]
[1768396181398,4.65356457,144.39,144.37,1e-08]
[1768396181704,10.95432783,144.4,144.37,1e-08]
[1768396181705,11.67241643,144.4,144.37,1e-08]
[1768396182001,4.65349873,144.39,144.37,1e-08]
[1768396182188,11.67241643,144.4,144.37,1e-08]
[1768396182383,12.29739764,144.39,144.35,0.70272335]
[1768396182573,7.64385647,144.39,144.35,0.70272335]
[1768396184417,6.92576787,144.39,144.35,0.70272335]
[1768396184709,11.67297502,144.39,144.35,0.70272335]
[1768396184905,4.65359232,144.38,144.35,0.70272335]
[1768396185081,6.92576787,144.39,144.35,0.70272335]
[1768396185277,4.65359232,144.38,144.35,0.70272335]
[1768396185595,6.92576787,144.39,144.35,0.70272335]
[1768396185802,4.65326332,144.38,144.35,0.70272335]
[1768396185981,7.64385647,144.39,144.35,0.70272335]
[1768396186182,4.65341188,144.38,144.35,0.70272335]
[1768396186383,4.74720715,144.37,144.33,0.70272335]
[1768396186607,0.7180886,144.36,144.33,0.70272335]
[1768396188105,10.95607502,144.37,144.33,0.70272335]
[1768396188302,4.65318066,144.36,144.33,0.70272335]
[1768396188496,10.95607502,144.37,144.33,0.70272335]
[1768396188690,4.65322432,144.36,144.33,0.70272335]
[1768396188889,10.95607502,144.37,144.33,0.70272335]
[1768396189103,4.65320245,144.36,144.33,0.70272335]
[1768396189402,6.92695647,144.37,144.33,0.70272335]
[1768396189594,4.6531173,144.36,144.34,0.70272335]
[1768396189796,6.92637945,144.38,144.34,0.70272335]
[1768396189991,4.65313241,144.37,144.34,0.70272335]
[1768396190196,6.92637945,144.38,144.35,0.70272335]
[1768396192096,7.61144063,144.39,144.35,0.70272335]
[1768396193109,0.68553542,144.39,144.35,7.63030501]
[1768396193623,0.68553542,144.39,144.35,6.92758166]
[1768396198105,0.68553542,144.38,144.31,24.25334349]
[1768396198403,0.68553542,144.38,144.33,4.02911855]
[1768396198809,0.68553542,144.38,144.31,24.25334349]
[1768396198999,0.68553542,144.38,144.33,4.02911855]
[1768396199199,0.68553542,144.38,144.31,24.25334349]
[1768396199499,0.68553542,144.38,144.34,6.92808646]
[1768396199698,7.61177185,144.38,144.34,6.92808646]
[1768396200302,0.68553542,144.35,144.31,6.92938186]
[1768396200501,4.02911855,144.35,144.3,0.02632449]
[1768396200693,30.06130367,144.38,144.3,6.95604502]
[1768396200894,4.02911855,144.35,144.31,6.92946287]
[1768396201193,4.02911855,144.33,144.29,6.93016447]
[1768396201398,4.02911855,144.33,144.28,6.93096756]
[1768396201600,10.95736833,144.34,144.28,10.9864106]
[1768396201813,10.95736833,144.34,144.28,10.96008611]
[1768396201988,10.95736833,144.34,144.29,0.02632449]
[1768396202198,4.02911855,144.36,144.3,0.02632449]
[1768396202503,0.68553542,144.34,144.29,4.05544304]
[1768396202708,0.68553542,144.33,144.29,0.02632449]
[1768396203608,0.68553542,144.32,144.28,6.93096756]
[1768396209324,0.68553542,144.32,144.28,10.96008611]
[1768396209612,0.68553542,144.32,144.28,10.9864106]
[1768396211916,0.68553542,144.32,144.28,10.96008611]
[1768396212101,0.68553542,144.32,144.28,28.3138295]
[1768396214435,6.92829169,144.34,144.3,0.02632449]
[1768396214436,0.68553542,144.34,144.3,0.02632449]
[1768396214721,0.68553542,144.35,144.31,4.05544304]
[1768396214922,0.68553542,144.36,144.32,0.02632449]
[1768396215923,4.71465397,144.37,144.33,0.02632449]
[1768396216520,0.68553542,144.37,144.33,0.02632449]
[1768396216722,0.68553542,144.37,144.33,4.05544304]
[1768396217724,0.68553542,144.38,144.34,24.2746271]
[1768396217905,0.68553542,144.38,144.34,28.30374565]
[1768396218423,0.68553542,144.39,144.35,0.02632449]
[1768396218612,0.68553542,144.39,144.35,4.05544304]
[1768396220107,0.68553542,144.39,144.36,6.92712662]
[1768396222627,0.68553542,144.39,144.35,6.92760651]
[1768396223233,0.66722268,144.38,144.35,6.92760651]
[1768396224627,0.66722268,144.38,144.34,24.2746271]
[1768396224923,4.02911855,144.41,144.35,4.72050055]
[1768396225131,4.02911855,144.4,144.35,0.691382]
[1768396226213,4.02911855,144.4,144.36,6.92712662]
[1768396226741,0.66722268,144.39,144.36,6.92712662]
[1768396229131,0.66722268,144.41,144.37,0.691382]
[1768396229316,0.66722268,144.41,144.36,17.317639]
[1768396229525,0.66722268,144.4,144.36,17.317639]
[1768396231317,0.66722268,144.41,144.36,21.34675755]
[1768396231542,0.66722268,144.41,144.36,28.27388417]
[1768396236950,11.62116185,144.41,144.36,28.27388417]
[1768396237235,0.66722268,144.4,144.36,28.27388417]
[1768396237832,0.66722268,144.39,144.34,17.3195494]
[1768396238031,0.66722268,144.39,144.34,33.98866795]
[1768396239236,0.66722268,144.39,144.35,6.92760651]
[1768396243348,0.66722268,144.39,144.34,26.82653207]
[1768396247751,0.66722268,144.39,144.36,6.92712662]
[1768396252654,0.66722268,144.39,144.35,6.92760651]
[1768396253759,0.66722268,144.39,144.35,26.82551899]
[1768396255059,0.66722268,144.39,144.35,17.31901627]
[1768396255244,0.66722268,144.39,144.35,19.89791248]
[1768396255443,0.66722268,144.39,144.35,17.31901627]
[1768396257266,0.66722268,144.39,144.35,24.24662278]
[1768396258363,0.66722268,144.39,144.35,17.31901627]
[1768396259560,0.72006397,144.38,144.35,17.31901627]
[1768396260259,0.72006397,144.38,144.35,24.24662278]
[1768396269363,6.92494804,144.41,144.35,27.48440023]
[1768396269668,5.18219924,144.4,144.35,24.90550402]
[1768396269856,5.18219924,144.39,144.35,24.90550402]
[1768396270055,2.57889621,144.4,144.35,24.90550402]
[1768396270258,5.18219111,144.39,144.35,24.90550402]
[1768396270570,2.57889621,144.4,144.35,24.24662278]
[1768396270746,5.1511385,144.39,144.35,24.24662278]
[1768396270952,2.57889621,144.4,144.35,24.90550402]
[1768396271166,5.15113224,144.39,144.35,24.90550402]
[1768396271371,0.72006397,144.39,144.35,24.90550402]
[1768396272546,0.72006397,144.39,144.35,24.24662278]
[1768396272746,0.72006397,144.38,144.35,24.24662278]
[1768396273049,0.72006397,144.38,144.35,24.90550402]
[1768396273459,6.92532552,144.4,144.35,6.92760651]
[1768396273460,3.29896018,144.37,144.35,6.92760651]
[1768396273667,0.72006397,144.35,144.32,0.65888124]
[1768396274173,0.72006397,144.35,144.33,6.9283014]
[1768396275251,0.72006397,144.35,144.32,0.65888124]
[1768396275453,0.72006397,144.35,144.33,6.92856647]
[1768396277056,6.9258512,144.39,144.34,0.65888124]
[1768396277258,2.57889621,144.37,144.35,6.92760651]
[1768396277555,5.1470042,144.38,144.33,17.32141619]
[1768396277556,2.57889621,144.36,144.33,17.32141619]
[1768396277751,2.57889621,144.36,144.33,17.98029743]
[1768396278571,2.57889621,144.36,144.34,6.92791103]
[1768396279276,3.29896018,144.36,144.34,6.92791103]
[1768396280161,2.57889621,144.37,144.34,0.67023943]
[1768396281479,6.9247282,144.41,144.35,0.70235281]
[1768396281680,7.7219683,144.4,144.35,0.70235281]
[1768396282000,2.57889621,144.39,144.35,0.70235281]
[1768396282159,3.2828899,144.39,144.36,6.92712662]
[1768396282359,0.1609116,144.38,144.36,6.92712662]
[1768396283472,3.2828899,144.39,144.36,0.70235281]
[1768396283857,0.1609116,144.38,144.35,6.92760651]
[1768396284372,0.1609116,144.38,144.35,7.62995932]
[1768396284686,3.2828899,144.39,144.36,7.62929971]